bitfinex-derivatives/quotes_SOLF0:USTF0_20260104
["timestamp","ask_amount","ask_price","bid_price","bid_amount"]
[1767506931764,0.0488946,134.55,134.5,4.02506115]
[1767506935061,0.0488946,134.55,134.51,2.78999702]
[1767506935562,2.72449109,134.59,134.52,10.63006115]
[1767506936463,2.72449109,134.59,134.53,9.48538262]
[1767506936768,0.0480572,134.57,134.55,0.0563476]
[1767506940272,2.84091366,134.62,134.55,2.86163653]
[1767506940569,2.84091366,134.62,134.55,4.00850066]
[1767506941160,0.05624224,134.6,134.56,2.75976603]
[1767506941370,0.05624224,134.6,134.57,0.05371375]
[1767506950476,87.84,134.63,134.58,2.7251208]
[1767506950680,2.84091366,134.64,134.58,2.7251208]
[1767506951174,2.84091366,134.66,134.58,2.7251208]
[1767506951574,0.04698006,134.63,134.61,0.05609806]
[1767506955189,2.84091366,134.66,134.61,0.05609806]
[1767506956087,0.05430124,134.65,134.61,0.05609806]
[1767506958687,2.8952149,134.65,134.61,0.05609806]
[1767506968902,2.8952149,134.65,134.56,2.76469153]
[1767506969097,2.84091366,134.63,134.56,3.91155566]
[1767506969799,2.84091366,134.63,134.57,2.82265319]
[1767506970099,0.04846269,134.61,134.57,2.82265319]
[1767506971702,0.04846269,134.61,134.58,0.05158713]
[1767506972887,2.87718201,134.66,134.58,2.88339604]
[1767506973094,2.87718201,134.64,134.56,3.97867304]
[1767506973293,87.8,134.68,134.56,3.97867304]
[1767506973294,2.87718201,134.67,134.59,2.83180891]
[1767506973504,2.87718201,134.67,134.6,3.97867304]
[1767506973694,2.87718201,134.67,134.61,2.83354775]
[1767506973894,2.87718201,134.67,134.6,1.14686413]
[1767506973895,2.87718201,134.69,134.62,2.83354775]
[1767506974098,2.87718201,134.69,134.63,0.0487447]
[1767506975205,0.0471491,134.67,134.63,0.0487447]
[1767506975401,2.87718201,134.69,134.63,10.71838481]
[1767506976698,0.05325145,134.67,134.63,10.71838481]
[1767506976902,2.87718201,134.69,134.63,10.71838481]
[1767506977500,9.96129621,134.7,134.64,2.83837656]
[1767506977697,2.87718201,134.71,134.64,9.52557656]
[1767506978096,2.87718201,134.71,134.66,0.05202772]
[1767506979003,0.04688932,134.7,134.66,0.05202772]
[1767506979208,2.92407133,134.7,134.62,9.52970404]
[1767506979400,2.87718201,134.68,134.62,9.52970404]
[1767506980399,0.04978703,134.66,134.64,0.04969315]
[1767506980604,0.04978703,134.66,134.62,6.6882]
[1767506981300,2.92696904,134.66,134.6,7.83606413]
[1767506981697,2.92696904,134.66,134.62,0.05099653]
[1767506983805,2.92696904,134.66,134.6,6.6892]
[1767506984908,2.92696904,134.66,134.62,0.04838752]
[1767506990816,0.04978703,134.66,134.62,3.06004497]
[1767506991116,9.56128201,134.71,134.62,3.06004497]
[1767506991314,9.56128201,134.71,134.62,3.01165745]
[1767506991315,5.66716011,134.7,134.62,3.01165745]
[1767506991515,2.87718201,134.71,134.62,3.01165745]
[1767506992021,2.87718201,134.71,134.65,3.02017673]
[1767506994019,0.05030917,134.69,134.65,3.02017673]
[1767506994218,0.05030917,134.69,134.65,0.05698578]
[1767506995634,2.92749118,134.69,134.65,0.05698578]
[1767507000220,2.92749118,134.69,134.6,2.88403592]
[1767507000221,2.87085479,134.68,134.6,2.88403592]
[1767507001232,0.05432527,134.65,134.63,0.05065552]
[1767507001525,0.04984301,134.65,134.63,0.0495715]
[1767507001926,2.87085479,134.68,134.63,0.0495715]
[1767507002931,0.05052975,134.67,134.63,0.0495715]
[1767507005132,2.87085479,134.72,134.64,2.88403592]
[1767507005520,2.87085479,134.75,134.65,2.88403592]
[1767507005721,5.66292368,134.74,134.67,2.88403592]
[1767507005922,2.87085479,134.75,134.67,2.88403592]
[1767507006324,2.87085479,134.75,134.67,9.56973592]
[1767507006540,2.87085479,134.75,134.7,0.05337756]
[1767507006836,0.05361278,134.74,134.7,0.05337756]
[1767507007025,2.92446757,134.74,134.7,0.05337756]
[1767507012937,0.05361278,134.74,134.7,0.05337756]
[1767507014743,2.92446757,134.74,134.7,0.05337756]
[1767507019245,0.05361278,134.74,134.7,0.05337756]
[1767507019953,2.87085479,134.81,134.74,2.88403592]
[1767507020740,2.87085479,134.81,134.76,0.05208974]
[1767507020952,0.05544955,134.79,134.76,0.05208974]
[1767507021653,2.87085479,134.84,134.76,0.05208974]
[1767507021957,2.87085479,134.84,134.72,2.88403592]
[1767507022154,2.87085479,134.82,134.72,2.88403592]
[1767507022755,0.05446565,134.78,134.76,0.05601801]
[1767507022954,0.05514233,134.78,134.76,0.05601801]
[1767507026349,2.87085479,134.82,134.76,0.05601801]
[1767507026655,2.87085479,134.82,134.74,2.88403592]
[1767507027447,0.05568459,134.79,134.77,0.05384658]
[1767507027749,0.05461786,134.79,134.75,6.6817]
[1767507027957,2.92547265,134.79,134.75,6.6817]
[1767507028553,2.92547265,134.79,134.76,0.04924807]
[1767507033362,2.92547265,134.79,134.72,2.88403592]
[1767507034456,2.92547265,134.79,134.74,0.04720442]
[1767507034652,2.92547265,134.79,134.7,2.94682869]
[1767507034864,2.85488687,134.78,134.68,2.94682869]
[1767507035765,0.04977639,134.74,134.72,0.05450222]
[1767507035958,2.85488687,134.75,134.68,2.94682869]
[1767507036957,0.0569668,134.73,134.7,0.05664892]
[1767507039266,2.91185367,134.73,134.65,16.15407867]
[1767507040371,2.91185367,134.73,134.68,0.0557848]
[1767507040869,2.85488687,134.71,134.64,2.94682869]
[1767507041868,2.9058226,134.69,134.66,0.04775035]
[1767507042064,2.9058226,134.69,134.62,2.94682869]
[1767507043070,2.9058226,134.69,134.64,0.05535267]
[1767507046173,9.54058687,134.68,134.64,0.05535267]
[1767507047373,2.85488687,134.67,134.64,0.05535267]
[1767507048174,6.6857,134.68,134.64,0.05535267]
[1767507048574,2.9058226,134.69,134.64,0.05535267]
[1767507061284,0.05093573,134.69,134.64,2.94452628]
[1767507062587,0.05093573,134.69,134.64,4.08902405]
[1767507063282,3.11825996,134.73,134.66,2.88917361]
[1767507064377,0.0469523,134.71,134.68,0.05580656]
[1767507066893,3.11825996,134.73,134.68,0.05580656]
[1767507067683,3.11825996,134.75,134.68,2.94498017]
[1767507067887,0.04760632,134.73,134.68,4.08947794]
[1767507068584,0.04760632,134.73,134.69,6.6848]
[1767507069687,3.11825996,134.75,134.69,9.57397361]
[1767507070687,0.05312699,134.73,134.69,9.57397361]
[1767507074803,3.17138695,134.73,134.68,0.05580656]
[1767507075292,3.11825996,134.72,134.63,108.06567138]
[1767507075489,3.11825996,134.72,134.64,87.74]
[1767507075690,3.11825996,134.72,134.65,6.6867]
[1767507076500,0.04978118,134.7,134.65,6.6867]
[1767507077794,0.04978118,134.7,134.66,0.04855566]
[1767507077993,3.16804114,134.7,134.66,0.04855566]
[1767507094503,3.16804114,134.7,134.64,7.83169777]
[1767507094703,3.11132142,134.69,134.6,1.14449777]
[1767507094907,3.11132142,134.67,134.59,90.79847552]
[1767507095207,3.11132142,134.67,134.6,6.6892]
[1767507095706,0.05218433,134.65,134.62,0.05254671]
[1767507100808,3.16350575,134.65,134.62,0.05254671]
[1767507101314,3.11132142,134.67,134.62,4.25552]
[1767507101609,3.11132142,134.67,134.62,4.20297329]
[1767507102313,0.05597448,134.66,134.63,0.05003726]
[1767507104612,3.1672959,134.66,134.63,0.05003726]
[1767507105206,3.1672959,134.66,134.6,7.83359777]
[1767507106222,3.1672959,134.66,134.62,0.05236053]
[1767507124524,0.05597448,134.66,134.62,0.05236053]
[1767507125321,3.04152427,134.66,134.62,0.05236053]
[1767507140234,5.72393199,134.65,134.62,0.05236053]
[1767507140541,3.04152427,134.66,134.62,0.05236053]
[1767507140726,8.70949961,134.65,134.62,0.05236053]
[1767507140926,2.98554979,134.65,134.62,0.05236053]
[1767507143537,0.05597448,134.66,134.62,0.05236053]
[1767507143840,5.72393942,134.65,134.62,0.05236053]
[1767507144041,3.04152427,134.66,134.62,0.05236053]
[1767507144240,5.72392744,134.65,134.62,0.05236053]
[1767507144438,3.04152427,134.66,134.62,0.05236053]
[1767507144739,5.72395772,134.65,134.62,0.05236053]
[1767507144946,3.04152427,134.66,134.62,0.05236053]
[1767507145133,5.72395772,134.65,134.62,0.05236053]
[1767507145329,3.04152427,134.66,134.62,0.05236053]
[1767507145526,5.72397457,134.65,134.62,0.05236053]
[1767507145832,3.04152427,134.66,134.62,0.05236053]
[1767507146032,5.72403236,134.65,134.62,0.05236053]
[1767507146234,3.04152427,134.66,134.62,0.05236053]
[1767507146432,8.70961988,134.65,134.62,0.05236053]
[1767507146634,2.98554979,134.65,134.62,0.05236053]
[1767507151348,0.05597448,134.66,134.58,87.76]
[1767507151349,8.87434846,134.64,134.58,87.76]
[1767507151657,3.14943148,134.64,134.58,3.02655856]
[1767507152142,0.04858988,134.62,134.6,0.04699498]
[1767507152342,3.14943148,134.64,134.6,0.04699498]
[1767507153440,0.05037313,134.63,134.6,0.04699498]
[1767507153742,2.90980972,134.63,134.6,0.04699498]
[1767507155149,0.05037313,134.63,134.6,0.04699498]
[1767507158460,0.05037313,134.63,134.61,6.6887]
[1767507159468,2.85943659,134.65,134.61,6.6887]
[1767507160460,2.85943659,134.65,134.6,0.04699498]
[1767507160655,6.6852,134.69,134.6,0.04699498]
[1767507160656,8.66174563,134.64,134.6,0.04699498]
[1767507160861,2.91533856,134.64,134.61,0.05511471]
[1767507164668,5.74461797,134.63,134.59,6.6897]
[1767507164865,2.85943659,134.63,134.59,6.6897]
[1767507165370,2.85943659,134.63,134.57,90.88935869]
[1767507168277,2.85943659,134.63,134.55,90.88935869]
[1767507168467,0.05161634,134.6,134.56,1.14561665]
[1767507168666,0.0542309,134.59,134.56,1.14561665]
[1767507171877,0.0542309,134.59,134.55,92.03497534]
[1767507172177,0.0542309,134.59,134.55,4.25497534]
[1767507172976,0.0542309,134.59,134.56,0.05498334]
[1767507175184,2.91366749,134.59,134.56,0.05498334]
[1767507175885,2.91366749,134.59,134.53,4.25497534]
[1767507176088,2.91366749,134.59,134.53,1.14561665]
[1767507177077,2.91366749,134.59,134.55,0.05574008]
[1767507177578,2.91366749,134.59,134.51,92.05497534]
[1767507178480,2.91366749,134.59,134.54,0.05621516]
[1767507186188,3.08916375,134.63,134.58,1.14561665]
[1767507186397,3.08916375,134.63,134.6,1.14561665]
[1767507187388,3.13971673,134.63,134.6,1.19918528]
[1767507190587,0.05055298,134.63,134.6,1.19918528]
[1767507190794,3.08916375,134.65,134.6,1.19918528]
[1767507191389,3.08916375,134.65,134.61,1.14561665]
[1767507191794,0.05602379,134.64,134.61,1.14561665]
[1767507193696,3.14518754,134.64,134.6,0.05356863]
[1767507199706,3.14518754,134.64,134.56,4.15021057]
[1767507199907,3.14518754,134.64,134.57,3.00459392]
[1767507200705,3.14518754,134.64,134.59,0.05450441]
[1767507206409,3.08916375,134.63,134.56,1.14561665]
[1767507206609,3.08916375,134.63,134.56,4.15021057]
[1767507207510,0.05076197,134.61,134.58,0.05326612]
[1767507208506,3.13992572,134.61,134.58,0.05326612]
[1767507211310,0.05076197,134.61,134.58,3.21038693]
[1767507211512,3.0514406,134.64,134.58,3.21038693]
[1767507211713,5.74099346,134.63,134.58,3.21038693]
[1767507211904,3.0514406,134.64,134.58,3.21038693]
[1767507212103,5.74099137,134.63,134.58,3.21038693]
[1767507212305,3.0514406,134.64,134.58,3.21038693]
[1767507212504,0.05103806,134.62,134.58,3.21038693]
[1767507214121,0.05103806,134.62,134.58,9.90048693]
[1767507214415,3.0514406,134.64,134.58,9.90048693]
[1767507214616,5.74170883,134.63,134.58,9.90048693]
[1767507214808,3.0514406,134.64,134.58,9.90048693]
[1767507215006,5.74170883,134.63,134.58,9.90048693]
[1767507215316,0.05056845,134.62,134.58,9.90048693]
[1767507215511,0.05056845,134.62,134.59,2.93771831]
[1767507215716,2.92290052,134.66,134.59,2.93771831]
[1767507215916,95.63141665,134.68,134.59,2.93771831]
[1767507215917,8.66452767,134.65,134.59,2.93771831]
[1767507216111,5.74162715,134.64,134.59,2.93771831]
[1767507216313,2.92290052,134.65,134.59,2.93771831]
[1767507216613,5.74147386,134.64,134.59,2.93771831]
[1767507216818,0.05158115,134.63,134.61,0.05532878]
[1767507217418,2.92290052,134.65,134.61,0.05532878]
[1767507218418,0.04709933,134.64,134.61,0.05532878]
[1767507233325,0.04709933,134.64,134.61,2.99304709]
[1767507235037,0.04709933,134.64,134.61,0.05532878]
[1767507241141,0.04709933,134.64,134.61,3.053144]
[1767507241344,3.03670637,134.68,134.61,3.053144]
[1767507241543,5.74984119,134.67,134.61,3.053144]
[1767507241743,5.74984119,134.66,134.62,9.68601522]
[1767507241942,3.03670637,134.68,134.62,9.68601522]
[1767507242138,3.03670637,134.68,134.63,2.99781522]
[1767507242440,0.0479805,134.66,134.64,0.05120223]
[1767507246345,3.08468687,134.66,134.6,6.6892]
[1767507246543,3.08468687,134.66,134.59,2.99781522]
[1767507247343,3.08468687,134.66,134.61,0.04901909]
[1767507249253,8.77736258,134.65,134.61,0.04901909]
[1767507249461,5.74071889,134.64,134.61,0.04901909]
[1767507249655,3.03670637,134.65,134.61,0.04901909]
[1767507249853,5.74071889,134.64,134.61,0.04901909]
[1767507250054,3.03670637,134.65,134.61,0.04901909]
[1767507250249,5.73876414,134.64,134.61,0.04901909]
[1767507250451,3.03670637,134.65,134.61,0.04901909]
[1767507250651,5.73871672,134.64,134.61,0.04901909]
[1767507250852,3.03670637,134.65,134.61,0.04901909]
[1767507251052,3.03670637,134.63,134.58,6.6901]
[1767507251355,3.03670637,134.63,134.56,90.77781522]
[1767507251763,3.03670637,134.63,134.57,2.99781522]
[1767507252163,0.05345431,134.61,134.59,0.05389951]
[1767507258667,3.03670637,134.65,134.59,3.05171473]
[1767507258867,8.7766913,134.64,134.59,0.05389951]
[1767507259068,5.73998493,134.63,134.59,0.05389951]
[1767507259566,0.04979351,134.62,134.59,0.05389951]
[1767507280483,2.89858417,134.62,134.59,0.05389951]
[1767507289487,2.84879066,134.64,134.59,0.05389951]
[1767507289689,5.74768559,134.63,134.58,6.6902]
[1767507289896,2.84879066,134.64,134.58,6.6902]
[1767507290189,5.74768559,134.63,134.58,6.6902]
[1767507290393,2.84879066,134.64,134.58,6.6902]
[1767507290593,8.47506198,134.68,134.6,0.04962981]
[1767507290594,0.04726684,134.62,134.6,0.04962981]
[1767507290785,2.84879066,134.63,134.6,0.04962981]
[1767507292094,2.90504566,134.63,134.6,0.04962981]
[1767507294197,5.76111295,134.62,134.6,0.04962981]
[1767507294397,2.90504566,134.63,134.6,0.04962981]
[1767507294694,5.76111296,134.62,134.6,0.04962981]
[1767507294895,2.90504566,134.63,134.6,0.04962981]
[1767507295093,5.7610851,134.62,134.6,0.04962981]
[1767507295285,2.90504566,134.63,134.6,0.04962981]
[1767507295485,5.76162193,134.62,134.6,0.04962981]
[1767507295685,2.90504566,134.63,134.6,0.04962981]
[1767507295882,5.76162193,134.62,134.6,0.04962981]
[1767507296086,2.90504566,134.63,134.6,0.04962981]
[1767507296286,5.76163751,134.62,134.6,0.04962981]
[1767507296589,2.90504566,134.63,134.6,0.04962981]
[1767507296783,5.76160965,134.62,134.6,0.04962981]
[1767507296987,2.90504566,134.63,134.6,0.04962981]
[1767507297183,5.76160965,134.62,134.6,0.04962981]
[1767507297387,2.90504566,134.63,134.6,0.04962981]
[1767507297590,5.76145705,134.62,134.6,0.04962981]
[1767507297788,2.90504566,134.63,134.58,6.6902]
[1767507298100,8.61031518,134.62,134.58,6.6902]
[1767507298292,2.84879066,134.62,134.58,6.6902]
[1767507298698,2.84879066,134.62,134.58,7.83541176]
[1767507298998,2.84879066,134.62,134.59,0.05215876]
[1767507300298,5.76142175,134.61,134.59,0.05215876]
[1767507300503,2.84879066,134.62,134.59,0.05215876]
[1767507300688,5.76142175,134.61,134.59,0.05215876]
[1767507300885,2.84879066,134.62,134.59,0.05215876]
[1767507301097,5.76142175,134.61,134.59,0.05215876]
[1767507301397,0.056255,134.63,134.59,9.56755158]
[1767507301599,1.14521176,134.71,134.61,2.82569282]
[1767507301801,13.21811125,134.73,134.62,3.97090458]
[1767507302698,0.04812805,134.69,134.62,3.97090458]
[1767507303004,0.04812805,134.69,134.63,6.6878]
[1767507303792,2.87147736,134.68,134.65,0.04978135]
[1767507305200,2.87147736,134.68,134.63,6.6878]
[1767507306202,2.87147736,134.68,134.64,0.04831113]
[1767507306903,2.87147736,134.68,134.63,6.6878]
[1767507307205,2.87147736,134.68,134.62,1.14521176]
[1767507308503,2.87147736,134.68,134.61,95.63401176]
[1767507309003,2.92267479,134.66,134.63,0.0548137]
[1767507309910,2.92267479,134.66,134.61,7.83401176]
[1767507310207,2.92267479,134.66,134.57,3.97090458]
[1767507310411,2.87147736,134.64,134.57,1.14521176]
[1767507310799,2.87147736,134.62,134.55,94.4718]
[1767507310998,2.87147736,134.59,134.53,2.82569282]
[1767507311602,2.87147736,134.59,134.54,1.14521176]
[1767507312209,2.87147736,134.59,134.55,0.04790737]
[1767507312409,0.054319,134.6,134.55,0.04790737]
[1767507312900,2.92579636,134.6,134.55,0.04790737]
[1767507332729,2.66034151,134.58,134.52,1.14521176]
[1767507333630,2.66034151,134.58,134.5,2.8640701]
[1767507333934,2.71413127,134.56,134.5,4.00928186]
[1767507334834,2.71413127,134.56,134.52,0.05715198]
[1767507344439,2.71413127,134.56,134.48,1.14521176]
[1767507345143,2.71413127,134.56,134.48,2.8640701]
[1767507345643,2.66034151,134.55,134.51,0.0243064]
[1767507346028,2.66034151,134.55,134.48,2.8640701]
[1767507347033,0.05551276,134.53,134.48,2.8640701]
[1767507348443,0.05551276,134.53,134.48,4.00928186]
[1767507350541,0.05551276,134.53,134.48,2.8640701]
[1767507350741,0.05551276,134.53,134.48,4.00928186]
[1767507352434,0.05551276,134.53,134.48,2.8640701]
[1767507354235,2.71585427,134.53,134.48,2.8640701]
[1767507364644,2.71585427,134.53,134.47,87.82]
[1767507364844,2.71585427,134.53,134.47,90.55692078]
[1767507365954,2.71585427,134.53,134.45,20.62431961]
[1767507366248,2.71585427,134.53,134.46,2.73692078]
[1767507367937,2.61506205,134.52,134.45,17.88739883]
[1767507368146,2.66294822,134.5,134.45,17.88739883]
[1767507376058,2.66294822,134.5,134.45,20.62431961]
[1767507384262,2.61506205,134.49,134.45,1.55219143]
[1767507384765,2.61506205,134.48,134.45,1.55219143]
[1767507386267,2.61506205,134.48,134.41,2.73692078]
[1767507386467,0.05094696,134.46,134.41,2.73692078]
[1767507396266,6.6971,134.45,134.39,87.9]
[1767507396464,0.05094696,134.46,134.4,2.52074087]
[1767507396676,0.05258872,134.44,134.4,2.52074087]
[1767507397276,106.84133108,134.49,134.4,2.52074087]
[1767507397476,8.41128677,134.48,134.4,2.52074087]
[1767507397781,6.6966,134.46,134.4,2.52074087]
[1767507398171,0.04919141,134.44,134.42,0.05158537]
[1767507402382,2.69353108,134.52,134.43,2.52074087]
[1767507402576,2.69353108,134.51,134.43,2.52074087]
[1767507402782,2.69353108,134.5,134.43,2.52074087]
[1767507402977,8.41066371,134.49,134.41,2.52074087]
[1767507403173,2.69353108,134.48,134.41,2.52074087]
[1767507403578,0.04951944,134.46,134.43,0.05457118]
[1767507411996,0.04951944,134.46,134.43,2.57531205]
[1767507422105,0.04951944,134.46,134.43,0.05457118]
[1767507425002,2.68316776,134.46,134.43,0.05457118]
[1767507425208,8.37091217,134.45,134.39,2.4794515]
[1767507425506,2.63364832,134.45,134.39,2.4794515]
[1767507426205,0.05696578,134.43,134.41,0.04720895]
[1767507429604,2.6906141,134.43,134.37,2.4794515]
[1767507429802,2.6906141,134.43,134.35,87.9]
[1767507430009,2.63364832,134.41,134.35,2.4794515]
[1767507430214,5.73459275,134.4,134.35,2.4794515]
[1767507430807,0.05677379,134.39,134.35,2.4794515]
[1767507432600,2.69042211,134.39,134.32,2.4794515]
[1767507433307,2.63364832,134.37,134.29,2.4794515]
[1767507433511,0.04896941,134.34,134.29,2.4794515]
[1767507433901,0.04896941,134.34,134.29,3.62744904]
[1767507434103,0.04896941,134.34,134.3,2.4794515]
[1767507435813,2.63364832,134.38,134.3,2.4794515]
[1767507436013,2.63364832,134.38,134.32,2.4794515]
[1767507436511,9.33324832,134.4,134.32,2.4794515]
[1767507436714,2.63364832,134.4,134.32,2.4794515]
[1767507436915,0.04801357,134.37,134.35,0.04896941]
[1767507439113,87.92,134.41,134.35,2.52842091]
[1767507439312,2.63364832,134.42,134.35,2.52842091]
[1767507439512,1.14799754,134.42,134.35,2.52842091]
[1767507439711,2.63364832,134.41,134.36,2.4794515]
[1767507439918,2.63364832,134.43,134.36,2.4794515]
[1767507440113,0.05436735,134.4,134.37,0.05157399]
[1767507440711,0.05436735,134.4,134.37,2.53102549]
[1767507441219,87.94,134.44,134.37,2.53102549]
[1767507441916,90.57364832,134.44,134.37,2.53102549]
[1767507442313,0.05075334,134.42,134.37,2.53102549]
[1767507445221,0.05075334,134.42,134.38,3.62744904]
[1767507446121,9.32964832,134.47,134.39,2.4794515]
[1767507446524,2.63364832,134.47,134.39,2.4794515]
[1767507447222,2.63364832,134.48,134.42,2.52945996]
[1767507447624,2.63364832,134.46,134.42,0.05000846]
[1767507448227,0.05397145,134.45,134.42,0.05000846]
[1767507449134,0.05397145,134.45,134.42,2.52945996]
[1767507451229,90.57364832,134.49,134.42,2.52945996]
[1767507452141,0.05222808,134.47,134.42,2.52945996]
[1767507452740,0.05222808,134.47,134.42,3.6774575]
[1767507453043,0.05222808,134.47,134.43,2.69403857]
[1767507454842,1.14799754,134.51,134.43,2.69403857]
[1767507454843,3.58949585,134.51,134.43,2.69403857]
[1767507455936,0.05426515,134.48,134.46,0.05543308]
[1767507460542,2.44149831,134.51,134.46,0.05543308]
[1767507462048,0.0537999,134.5,134.46,0.05543308]
[1767507468253,2.44149831,134.54,134.46,6.75153308]
[1767507468457,2.44149831,134.56,134.49,2.69403857]
[1767507469350,0.05398031,134.54,134.51,0.04915591]
[1767507469545,0.05398031,134.54,134.51,2.74319448]
[1767507471347,90.32149831,134.6,134.51,2.74319448]
[1767507471550,89.02799754,134.6,134.51,2.69403857]
[1767507471757,2.44149831,134.59,134.51,2.69403857]
[1767507472358,2.44149831,134.59,134.54,0.05613503]
[1767507472658,0.05706557,134.58,134.54,0.05613503]
[1767507474165,0.05706557,134.58,134.54,2.7501736]
[1767507474362,2.44149831,134.61,134.54,2.7501736]
[1767507475461,0.04788358,134.59,134.54,2.7501736]
[1767507480373,2.65721088,134.59,134.54,0.05613503]
[1767507481771,0.04788358,134.59,134.54,2.58168686]
[1767507483871,21.78237495,134.63,134.55,2.52555183]
[1767507485071,21.78237495,134.63,134.58,0.05010071]
[1767507485273,0.05620795,134.6,134.58,0.05010071]
[1767507489577,0.05620795,134.6,134.56,2.52555183]
[1767507490680,0.05620795,134.6,134.57,0.05310787]
[1767507493683,0.05620795,134.6,134.57,2.5786597]
[1767507493978,12.48484765,134.63,134.57,2.5786597]
[1767507496480,0.04762752,134.61,134.57,2.5786597]
[1767507496983,0.04762752,134.61,134.57,0.05310787]
[1767507497182,2.65695482,134.61,134.57,0.05310787]
[1767507497590,2.65695482,134.61,134.54,2.52555183]
[1767507498682,2.65695482,134.61,134.56,0.05014714]
[1767507499688,2.65695482,134.61,134.54,2.52555183]
[1767507500490,2.6093273,134.59,134.54,2.52555183]
[1767507500992,0.05289955,134.58,134.55,0.05123509]
[1767507504303,0.05289955,134.58,134.55,2.57678692]
[1767507506896,0.05289955,134.58,134.55,0.05123509]
[1767507507091,2.66222685,134.58,134.51,2.52555183]
[1767507507292,2.6093273,134.57,134.49,2.52555183]
[1767507508397,0.05555794,134.54,134.52,2.58051325]
[1767507508704,11.09057354,134.59,134.52,2.58051325]
[1767507508903,5.73891613,134.58,134.52,2.58051325]
[1767507509093,11.09057354,134.59,134.52,2.58051325]
[1767507509298,5.74155358,134.58,134.52,2.58051325]
[1767507509601,0.04984366,134.56,134.52,2.58051325]
[1767507512594,2.48939901,134.56,134.52,0.05496142]
[1767507514104,2.48939901,134.56,134.5,2.67273417]
[1767507514306,9.18119901,134.56,134.5,2.67273417]
[1767507515109,9.18119901,134.56,134.52,0.04990435]
[1767507520721,0.04984366,134.56,134.52,0.04990435]
[1767507520925,0.04984366,134.56,134.52,2.72263852]
[1767507523716,2.48939901,134.56,134.52,0.04990435]
[1767507523921,2.48939901,134.56,134.47,97.20833417]
[1767507524120,2.43955535,134.56,134.48,2.67273417]
[1767507524922,2.43955535,134.55,134.48,2.67273417]
[1767507525126,0.04845268,134.53,134.51,0.05175186]
[1767507529125,9.13015535,134.58,134.51,2.72448603]
[1767507529329,8.19500812,134.57,134.51,2.72448603]
[1767507529527,2.43955535,134.57,134.51,2.72448603]
[1767507530126,0.04857985,134.55,134.51,2.72448603]
[1767507541436,2.47500748,134.59,134.51,2.72448603]
[1767507541636,5.76348173,134.58,134.51,2.72448603]
[1767507541836,2.47500748,134.59,134.51,2.72448603]
[1767507542037,5.76348297,134.58,134.51,2.72448603]
[1767507542344,0.05208543,134.56,134.51,2.72448603]
[1767507546646,2.47500748,134.61,134.53,2.45053481]
[1767507546855,5.76836056,134.6,134.53,2.45053481]
[1767507547037,5.76836056,134.59,134.53,2.45053481]
[1767507547242,2.47500748,134.61,134.53,2.45053481]
[1767507547442,5.76819494,134.6,134.53,2.45053481]
[1767507547642,0.04855485,134.58,134.55,2.50587225]
[1767507561962,2.47500748,134.61,134.55,2.50587225]
[1767507562162,5.76656159,134.6,134.55,2.50587225]
[1767507562465,2.47500748,134.61,134.55,2.50587225]
[1767507562665,5.76632999,134.6,134.55,2.50587225]
[1767507562865,2.47500748,134.61,134.55,2.50587225]
[1767507563067,0.05670722,134.59,134.55,2.50587225]
[1767507569874,6.6881,134.63,134.56,2.45053481]
[1767507570078,5.7643187,134.62,134.56,2.45053481]
[1767507570277,6.6881,134.63,134.56,2.45053481]
[1767507570478,5.76385279,134.62,134.56,2.45053481]
[1767507570678,6.6881,134.63,134.56,2.45053481]
[1767507570878,0.0560267,134.6,134.58,0.04728836]
[1767507571271,3.62169421,134.64,134.58,2.61484672]
[1767507571470,5.76381196,134.63,134.58,2.61484672]
[1767507571673,5.76381196,134.62,134.58,2.61484672]
[1767507571875,2.47500748,134.64,134.58,2.61484672]
[1767507572076,5.76381196,134.63,134.58,2.61484672]
[1767507572378,5.76381196,134.62,134.58,2.61484672]
[1767507572579,2.47500748,134.64,134.58,2.61484672]
[1767507572774,9.27394508,134.67,134.6,2.53427283]
[1767507572980,9.27394508,134.67,134.62,0.0512579]
[1767507573177,2.58764508,134.66,134.62,0.0512579]
[1767507573379,2.58764508,134.66,134.6,2.53427283]
[1767507574374,0.046835,134.64,134.62,0.0562009]
[1767507581786,2.63448008,134.64,134.58,87.8]
[1767507582089,2.58764508,134.64,134.58,90.33427283]
[1767507582883,0.05125141,134.62,134.6,0.05381815]
[1767507586582,9.27434508,134.66,134.6,2.58809098]
[1767507586787,5.75939165,134.65,134.6,2.58809098]
[1767507586990,9.27434508,134.66,134.6,2.58809098]
[1767507587290,5.75912955,134.65,134.6,2.58809098]
[1767507587583,9.27434508,134.66,134.6,2.58809098]
[1767507587584,2.58764508,134.66,134.6,2.58809098]
[1767507587788,0.05440374,134.64,134.6,2.58809098]
[1767507597000,0.05440374,134.64,134.6,0.05381815]
[1767507600795,0.05440374,134.64,134.6,2.61899578]
[1767507601693,2.56176694,134.64,134.6,0.05381815]
[1767507602397,2.5073632,134.62,134.57,2.56517763]
[1767507603589,0.04882539,134.61,134.58,0.05654251]
[1767507606596,6.6872,134.65,134.58,2.62172014]
[1767507607596,9.1945632,134.65,134.58,2.62172014]
[1767507608191,0.05171246,134.63,134.58,2.62172014]
[1767507622716,9.1936632,134.67,134.59,2.56517763]